{"text_format":"3","workbook":"xlsx","n_sheets":4,"sheets":["Souhrn","Součty","Příjmy","Výdaje"],"not_rendered":{"defined_names":13},"read":"whole","date_system":"1900"}

{"sheet":"Souhrn","index":0,"n_rows":6,"n_cols":3,"rows_kept":6,"merged":[[0,1,0,2],[1,1,1,2]]}
[null,"MĚSÍČNÍ RODINNÝ ROZPOČET"]
[null,"SOUHRN"]
[null,"Zůstatek","Částka"]
[null,"Předpokládaný zůstatek (předpokládané příjmy minus výdaje)",{"$f":"PředpokládanéPříjmy-PředpokládanéVýdaje","v":{"v":1114,"d":"1,114 Kč"}}]
[null,"Skutečný zůstatek (skutečné příjmy minus výdaje)",{"$f":"SkutečnéPříjmy-SkutečnéVýdaje","v":{"v":997,"d":"997 Kč"}}]
[null,"Rozdíl (skutečnost minus předpoklad)",{"$f":"SkutečnýZůstatek-PředpokládanýZůstatek","v":{"v":-117,"d":"-117 Kč"}}]

{"sheet":"Součty","index":1,"n_rows":6,"n_cols":3,"rows_kept":6,"merged":[[0,1,0,2],[1,1,1,2]]}
[null,{"$f":"Název_sešitu","v":"MĚSÍČNÍ RODINNÝ ROZPOČET"}]
[null,"Součty"]
[null,"Součty","Částka"]
[null,"Předpokládané náklady celkem",{"$f":"PředpokládanéVýdaje","v":{"v":4486,"d":"4,486 Kč"}}]
[null,"Skutečné náklady celkem",{"$f":"SkutečnéVýdaje","v":{"v":4603,"d":"4,603 Kč"}}]
[null,"Celkový rozdíl",{"$f":"C4-C5","v":{"v":-117,"d":"-117 Kč"}}]

{"sheet":"Příjmy","index":2,"n_rows":7,"n_cols":5,"rows_kept":7,"merged":[[0,1,0,4],[1,1,1,4]]}
[null,{"$f":"Název_sešitu","v":"MĚSÍČNÍ RODINNÝ ROZPOČET"}]
[null,"PŘÍJMY"]
[null,"Předpokládané příjmy","Předpoklad","Skutečnost","Rozdíl"]
[null,"Příjem 1",{"v":4000,"d":"4,000.00 Kč"},{"v":4000,"d":"4,000.00 Kč"},{"$f":"TabulkaPříjmy[[#This Row],[Předpoklad]]-TabulkaPříjmy[[#This Row],[Skutečnost]]","v":{"v":0,"d":"0.00 Kč"}}]
[null,"Příjem 2",{"v":1300,"d":"1,300.00 Kč"},{"v":1300,"d":"1,300.00 Kč"},{"$f":"TabulkaPříjmy[[#This Row],[Předpoklad]]-TabulkaPříjmy[[#This Row],[Skutečnost]]","v":{"v":0,"d":"0.00 Kč"}}]
[null,"Jiné příjmy",{"v":300,"d":"300.00 Kč"},{"v":300,"d":"300.00 Kč"},{"$f":"TabulkaPříjmy[[#This Row],[Předpoklad]]-TabulkaPříjmy[[#This Row],[Skutečnost]]","v":{"v":0,"d":"0.00 Kč"}}]
[null,"Celkové měsíční příjmy",{"$f":"SUBTOTAL(109,TabulkaPříjmy[Předpoklad])","v":{"v":5600,"d":"5,600.00 Kč"}},{"$f":"SUBTOTAL(109,TabulkaPříjmy[Skutečnost])","v":{"v":5600,"d":"5,600.00 Kč"}},{"$f":"SUBTOTAL(109,TabulkaPříjmy[Rozdíl])","v":{"v":0,"d":"0.00 Kč"}}]

{"sheet":"Výdaje","index":3,"n_rows":80,"n_cols":6,"rows_kept":80,"merged":[[0,1,0,5],[1,1,1,5],[2,1,2,5]]}
[null,{"$f":"Název_sešitu","v":"MĚSÍČNÍ RODINNÝ ROZPOČET"}]
[null,"VÝDAJE"]
[null,"V této buňce je průřez pro filtrování tabulky výdajů podle kategorie."]
[null,"Kategorie","Podkategorie","Předpoklad","Skutečnost","Rozdíl"]
[null,"Bydlení","Hypotéka nebo nájemné",{"v":1000,"d":"1,000.00 Kč"},{"v":1000,"d":"1,000.00 Kč"},{"$f":"TabulkaVýdaje[[#This Row],[Předpoklad]]-TabulkaVýdaje[[#This Row],[Skutečnost]]","v":{"v":0,"d":"0.00 Kč"}}]
[null,"Bydlení","Druhá hypotéka nebo nájemné",{"v":0,"d":"0.00 Kč"},{"v":0,"d":"0.00 Kč"},{"$f":"TabulkaVýdaje[[#This Row],[Předpoklad]]-TabulkaVýdaje[[#This Row],[Skutečnost]]","v":{"v":0,"d":"0.00 Kč"}}]
[null,"Bydlení","Telefon",{"v":54,"d":"54.00 Kč"},{"v":100,"d":"100.00 Kč"},{"$f":"TabulkaVýdaje[[#This Row],[Předpoklad]]-TabulkaVýdaje[[#This Row],[Skutečnost]]","v":{"v":-46,"d":"-46.00 Kč"}}]
[null,"Bydlení","Elektřina",{"v":44,"d":"44.00 Kč"},{"v":56,"d":"56.00 Kč"},{"$f":"TabulkaVýdaje[[#This Row],[Předpoklad]]-TabulkaVýdaje[[#This Row],[Skutečnost]]","v":{"v":-12,"d":"-12.00 Kč"}}]
[null,"Bydlení","Plyn",{"v":22,"d":"22.00 Kč"},{"v":28,"d":"28.00 Kč"},{"$f":"TabulkaVýdaje[[#This Row],[Předpoklad]]-TabulkaVýdaje[[#This Row],[Skutečnost]]","v":{"v":-6,"d":"-6.00 Kč"}}]
[null,"Bydlení","Vodné a stočné",{"v":8,"d":"8.00 Kč"},{"v":8,"d":"8.00 Kč"},{"$f":"TabulkaVýdaje[[#This Row],[Předpoklad]]-TabulkaVýdaje[[#This Row],[Skutečnost]]","v":{"v":0,"d":"0.00 Kč"}}]
[null,"Bydlení","Kabelová televize",{"v":34,"d":"34.00 Kč"},{"v":34,"d":"34.00 Kč"},{"$f":"TabulkaVýdaje[[#This Row],[Předpoklad]]-TabulkaVýdaje[[#This Row],[Skutečnost]]","v":{"v":0,"d":"0.00 Kč"}}]
[null,"Bydlení","Poplatky za odpady",{"v":10,"d":"10.00 Kč"},{"v":10,"d":"10.00 Kč"},{"$f":"TabulkaVýdaje[[#This Row],[Předpoklad]]-TabulkaVýdaje[[#This Row],[Skutečnost]]","v":{"v":0,"d":"0.00 Kč"}}]
[null,"Bydlení","Údržba a opravy",{"v":23,"d":"23.00 Kč"},{"v":0,"d":"0.00 Kč"},{"$f":"TabulkaVýdaje[[#This Row],[Předpoklad]]-TabulkaVýdaje[[#This Row],[Skutečnost]]","v":{"v":23,"d":"23.00 Kč"}}]
[null,"Bydlení","Zásoby",{"v":0,"d":"0.00 Kč"},{"v":0,"d":"0.00 Kč"},{"$f":"TabulkaVýdaje[[#This Row],[Předpoklad]]-TabulkaVýdaje[[#This Row],[Skutečnost]]","v":{"v":0,"d":"0.00 Kč"}}]
[null,"Bydlení","Jiné",{"v":0,"d":"0.00 Kč"},{"v":0,"d":"0.00 Kč"},{"$f":"TabulkaVýdaje[[#This Row],[Předpoklad]]-TabulkaVýdaje[[#This Row],[Skutečnost]]","v":{"v":0,"d":"0.00 Kč"}}]
[null,"Doprava","Splátka automobilu 1",{"v":16,"d":"16.00 Kč"},{"v":66,"d":"66.00 Kč"},{"$f":"TabulkaVýdaje[[#This Row],[Předpoklad]]-TabulkaVýdaje[[#This Row],[Skutečnost]]","v":{"v":-50,"d":"-50.00 Kč"}}]
[null,"Doprava","Splátka automobilu 2",{"v":35,"d":"35.00 Kč"},{"v":42,"d":"42.00 Kč"},{"$f":"TabulkaVýdaje[[#This Row],[Předpoklad]]-TabulkaVýdaje[[#This Row],[Skutečnost]]","v":{"v":-7,"d":"-7.00 Kč"}}]
[null,"Doprava","Autobusy/taxi",{"v":1,"d":"1.00 Kč"},{"v":62,"d":"62.00 Kč"},{"$f":"TabulkaVýdaje[[#This Row],[Předpoklad]]-TabulkaVýdaje[[#This Row],[Skutečnost]]","v":{"v":-61,"d":"-61.00 Kč"}}]
[null,"Doprava","Pojištění",{"v":91,"d":"91.00 Kč"},{"v":27,"d":"27.00 Kč"},{"$f":"TabulkaVýdaje[[#This Row],[Předpoklad]]-TabulkaVýdaje[[#This Row],[Skutečnost]]","v":{"v":64,"d":"64.00 Kč"}}]
[null,"Doprava","Poplatky",{"v":80,"d":"80.00 Kč"},{"v":89,"d":"89.00 Kč"},{"$f":"TabulkaVýdaje[[#This Row],[Předpoklad]]-TabulkaVýdaje[[#This Row],[Skutečnost]]","v":{"v":-9,"d":"-9.00 Kč"}}]
[null,"Doprava","Benzín",{"v":18,"d":"18.00 Kč"},{"v":93,"d":"93.00 Kč"},{"$f":"TabulkaVýdaje[[#This Row],[Předpoklad]]-TabulkaVýdaje[[#This Row],[Skutečnost]]","v":{"v":-75,"d":"-75.00 Kč"}}]
[null,"Doprava","Údržba",{"v":34,"d":"34.00 Kč"},{"v":37,"d":"37.00 Kč"},{"$f":"TabulkaVýdaje[[#This Row],[Předpoklad]]-TabulkaVýdaje[[#This Row],[Skutečnost]]","v":{"v":-3,"d":"-3.00 Kč"}}]
[null,"Doprava","Jiné",{"v":83,"d":"83.00 Kč"},{"v":61,"d":"61.00 Kč"},{"$f":"TabulkaVýdaje[[#This Row],[Předpoklad]]-TabulkaVýdaje[[#This Row],[Skutečnost]]","v":{"v":22,"d":"22.00 Kč"}}]
[null,"Pojištění","Dům",{"v":48,"d":"48.00 Kč"},{"v":63,"d":"63.00 Kč"},{"$f":"TabulkaVýdaje[[#This Row],[Předpoklad]]-TabulkaVýdaje[[#This Row],[Skutečnost]]","v":{"v":-15,"d":"-15.00 Kč"}}]
[null,"Pojištění","Zdravotní",{"v":21,"d":"21.00 Kč"},{"v":44,"d":"44.00 Kč"},{"$f":"TabulkaVýdaje[[#This Row],[Předpoklad]]-TabulkaVýdaje[[#This Row],[Skutečnost]]","v":{"v":-23,"d":"-23.00 Kč"}}]
[null,"Pojištění","Životní",{"v":35,"d":"35.00 Kč"},{"v":65,"d":"65.00 Kč"},{"$f":"TabulkaVýdaje[[#This Row],[Předpoklad]]-TabulkaVýdaje[[#This Row],[Skutečnost]]","v":{"v":-30,"d":"-30.00 Kč"}}]
[null,"Pojištění","Jiné",{"v":14,"d":"14.00 Kč"},{"v":75,"d":"75.00 Kč"},{"$f":"TabulkaVýdaje[[#This Row],[Předpoklad]]-TabulkaVýdaje[[#This Row],[Skutečnost]]","v":{"v":-61,"d":"-61.00 Kč"}}]
[null,"Jídlo","Potraviny",{"v":79,"d":"79.00 Kč"},{"v":0,"d":"0.00 Kč"},{"$f":"TabulkaVýdaje[[#This Row],[Předpoklad]]-TabulkaVýdaje[[#This Row],[Skutečnost]]","v":{"v":79,"d":"79.00 Kč"}}]
[null,"Jídlo","Večeře v restauraci",{"v":56,"d":"56.00 Kč"},{"v":50,"d":"50.00 Kč"},{"$f":"TabulkaVýdaje[[#This Row],[Předpoklad]]-TabulkaVýdaje[[#This Row],[Skutečnost]]","v":{"v":6,"d":"6.00 Kč"}}]
[null,"Jídlo","Jiné",{"v":96,"d":"96.00 Kč"},{"v":23,"d":"23.00 Kč"},{"$f":"TabulkaVýdaje[[#This Row],[Předpoklad]]-TabulkaVýdaje[[#This Row],[Skutečnost]]","v":{"v":73,"d":"73.00 Kč"}}]
[null,"Děti","Zdravotní péče",{"v":90,"d":"90.00 Kč"},{"v":90,"d":"90.00 Kč"},{"$f":"TabulkaVýdaje[[#This Row],[Předpoklad]]-TabulkaVýdaje[[#This Row],[Skutečnost]]","v":{"v":0,"d":"0.00 Kč"}}]
[null,"Děti","Oblečení",{"v":33,"d":"33.00 Kč"},{"v":30,"d":"30.00 Kč"},{"$f":"TabulkaVýdaje[[#This Row],[Předpoklad]]-TabulkaVýdaje[[#This Row],[Skutečnost]]","v":{"v":3,"d":"3.00 Kč"}}]
[null,"Děti","Školné",{"v":86,"d":"86.00 Kč"},{"v":64,"d":"64.00 Kč"},{"$f":"TabulkaVýdaje[[#This Row],[Předpoklad]]-TabulkaVýdaje[[#This Row],[Skutečnost]]","v":{"v":22,"d":"22.00 Kč"}}]
[null,"Děti","Školní pomůcky",{"v":76,"d":"76.00 Kč"},{"v":2,"d":"2.00 Kč"},{"$f":"TabulkaVýdaje[[#This Row],[Předpoklad]]-TabulkaVýdaje[[#This Row],[Skutečnost]]","v":{"v":74,"d":"74.00 Kč"}}]
[null,"Děti","Členské příspěvky a poplatky",{"v":60,"d":"60.00 Kč"},{"v":90,"d":"90.00 Kč"},{"$f":"TabulkaVýdaje[[#This Row],[Předpoklad]]-TabulkaVýdaje[[#This Row],[Skutečnost]]","v":{"v":-30,"d":"-30.00 Kč"}}]
[null,"Děti","Platba za obědy",{"v":37,"d":"37.00 Kč"},{"v":60,"d":"60.00 Kč"},{"$f":"TabulkaVýdaje[[#This Row],[Předpoklad]]-TabulkaVýdaje[[#This Row],[Skutečnost]]","v":{"v":-23,"d":"-23.00 Kč"}}]
[null,"Děti","Péče o děti",{"v":22,"d":"22.00 Kč"},{"v":70,"d":"70.00 Kč"},{"$f":"TabulkaVýdaje[[#This Row],[Předpoklad]]-TabulkaVýdaje[[#This Row],[Skutečnost]]","v":{"v":-48,"d":"-48.00 Kč"}}]
[null,"Děti","Hračky a hry",{"v":80,"d":"80.00 Kč"},{"v":21,"d":"21.00 Kč"},{"$f":"TabulkaVýdaje[[#This Row],[Předpoklad]]-TabulkaVýdaje[[#This Row],[Skutečnost]]","v":{"v":59,"d":"59.00 Kč"}}]
[null,"Děti","Jiné",{"v":65,"d":"65.00 Kč"},{"v":20,"d":"20.00 Kč"},{"$f":"TabulkaVýdaje[[#This Row],[Předpoklad]]-TabulkaVýdaje[[#This Row],[Skutečnost]]","v":{"v":45,"d":"45.00 Kč"}}]
[null,"Domácí zvířata","Jídlo",{"v":37,"d":"37.00 Kč"},{"v":34,"d":"34.00 Kč"},{"$f":"TabulkaVýdaje[[#This Row],[Předpoklad]]-TabulkaVýdaje[[#This Row],[Skutečnost]]","v":{"v":3,"d":"3.00 Kč"}}]
[null,"Domácí zvířata","Zdravotní péče",{"v":74,"d":"74.00 Kč"},{"v":86,"d":"86.00 Kč"},{"$f":"TabulkaVýdaje[[#This Row],[Předpoklad]]-TabulkaVýdaje[[#This Row],[Skutečnost]]","v":{"v":-12,"d":"-12.00 Kč"}}]
[null,"Domácí zvířata","Péče o vzhled",{"v":80,"d":"80.00 Kč"},{"v":92,"d":"92.00 Kč"},{"$f":"TabulkaVýdaje[[#This Row],[Předpoklad]]-TabulkaVýdaje[[#This Row],[Skutečnost]]","v":{"v":-12,"d":"-12.00 Kč"}}]
[null,"Domácí zvířata","Hračky",{"v":61,"d":"61.00 Kč"},{"v":22,"d":"22.00 Kč"},{"$f":"TabulkaVýdaje[[#This Row],[Předpoklad]]-TabulkaVýdaje[[#This Row],[Skutečnost]]","v":{"v":39,"d":"39.00 Kč"}}]
[null,"Domácí zvířata","Jiné",{"v":83,"d":"83.00 Kč"},{"v":51,"d":"51.00 Kč"},{"$f":"TabulkaVýdaje[[#This Row],[Předpoklad]]-TabulkaVýdaje[[#This Row],[Skutečnost]]","v":{"v":32,"d":"32.00 Kč"}}]
[null,"Osobní péče","Zdravotní péče",{"v":28,"d":"28.00 Kč"},{"v":10,"d":"10.00 Kč"},{"$f":"TabulkaVýdaje[[#This Row],[Předpoklad]]-TabulkaVýdaje[[#This Row],[Skutečnost]]","v":{"v":18,"d":"18.00 Kč"}}]
[null,"Osobní péče","Vlasy a nehty",{"v":25,"d":"25.00 Kč"},{"v":81,"d":"81.00 Kč"},{"$f":"TabulkaVýdaje[[#This Row],[Předpoklad]]-TabulkaVýdaje[[#This Row],[Skutečnost]]","v":{"v":-56,"d":"-56.00 Kč"}}]
[null,"Osobní péče","Oblečení",{"v":59,"d":"59.00 Kč"},{"v":72,"d":"72.00 Kč"},{"$f":"TabulkaVýdaje[[#This Row],[Předpoklad]]-TabulkaVýdaje[[#This Row],[Skutečnost]]","v":{"v":-13,"d":"-13.00 Kč"}}]
[null,"Osobní péče","Čistírna",{"v":89,"d":"89.00 Kč"},{"v":90,"d":"90.00 Kč"},{"$f":"TabulkaVýdaje[[#This Row],[Předpoklad]]-TabulkaVýdaje[[#This Row],[Skutečnost]]","v":{"v":-1,"d":"-1.00 Kč"}}]
[null,"Osobní péče","Fitness",{"v":78,"d":"78.00 Kč"},{"v":48,"d":"48.00 Kč"},{"$f":"TabulkaVýdaje[[#This Row],[Předpoklad]]-TabulkaVýdaje[[#This Row],[Skutečnost]]","v":{"v":30,"d":"30.00 Kč"}}]
[null,"Osobní péče","Členské příspěvky a poplatky",{"v":6,"d":"6.00 Kč"},{"v":73,"d":"73.00 Kč"},{"$f":"TabulkaVýdaje[[#This Row],[Předpoklad]]-TabulkaVýdaje[[#This Row],[Skutečnost]]","v":{"v":-67,"d":"-67.00 Kč"}}]
[null,"Osobní péče","Jiné",{"v":80,"d":"80.00 Kč"},{"v":66,"d":"66.00 Kč"},{"$f":"TabulkaVýdaje[[#This Row],[Předpoklad]]-TabulkaVýdaje[[#This Row],[Skutečnost]]","v":{"v":14,"d":"14.00 Kč"}}]
[null,"Zábava","Video/DVD",{"v":11,"d":"11.00 Kč"},{"v":29,"d":"29.00 Kč"},{"$f":"TabulkaVýdaje[[#This Row],[Předpoklad]]-TabulkaVýdaje[[#This Row],[Skutečnost]]","v":{"v":-18,"d":"-18.00 Kč"}}]
[null,"Zábava","CD",{"v":77,"d":"77.00 Kč"},{"v":32,"d":"32.00 Kč"},{"$f":"TabulkaVýdaje[[#This Row],[Předpoklad]]-TabulkaVýdaje[[#This Row],[Skutečnost]]","v":{"v":45,"d":"45.00 Kč"}}]
[null,"Zábava","Filmy",{"v":71,"d":"71.00 Kč"},{"v":43,"d":"43.00 Kč"},{"$f":"TabulkaVýdaje[[#This Row],[Předpoklad]]-TabulkaVýdaje[[#This Row],[Skutečnost]]","v":{"v":28,"d":"28.00 Kč"}}]
[null,"Zábava","Koncerty",{"v":64,"d":"64.00 Kč"},{"v":21,"d":"21.00 Kč"},{"$f":"TabulkaVýdaje[[#This Row],[Předpoklad]]-TabulkaVýdaje[[#This Row],[Skutečnost]]","v":{"v":43,"d":"43.00 Kč"}}]
[null,"Zábava","Sport",{"v":47,"d":"47.00 Kč"},{"v":57,"d":"57.00 Kč"},{"$f":"TabulkaVýdaje[[#This Row],[Předpoklad]]-TabulkaVýdaje[[#This Row],[Skutečnost]]","v":{"v":-10,"d":"-10.00 Kč"}}]
[null,"Zábava","Divadlo",{"v":28,"d":"28.00 Kč"},{"v":1,"d":"1.00 Kč"},{"$f":"TabulkaVýdaje[[#This Row],[Předpoklad]]-TabulkaVýdaje[[#This Row],[Skutečnost]]","v":{"v":27,"d":"27.00 Kč"}}]
[null,"Zábava","Jiné",{"v":13,"d":"13.00 Kč"},{"v":42,"d":"42.00 Kč"},{"$f":"TabulkaVýdaje[[#This Row],[Předpoklad]]-TabulkaVýdaje[[#This Row],[Skutečnost]]","v":{"v":-29,"d":"-29.00 Kč"}}]
[null,"Půjčky","Osobní",{"v":65,"d":"65.00 Kč"},{"v":6,"d":"6.00 Kč"},{"$f":"TabulkaVýdaje[[#This Row],[Předpoklad]]-TabulkaVýdaje[[#This Row],[Skutečnost]]","v":{"v":59,"d":"59.00 Kč"}}]
[null,"Půjčky","Studentské",{"v":100,"d":"100.00 Kč"},{"v":36,"d":"36.00 Kč"},{"$f":"TabulkaVýdaje[[#This Row],[Předpoklad]]-TabulkaVýdaje[[#This Row],[Skutečnost]]","v":{"v":64,"d":"64.00 Kč"}}]
[null,"Půjčky","Kreditní karta",{"v":29,"d":"29.00 Kč"},{"v":69,"d":"69.00 Kč"},{"$f":"TabulkaVýdaje[[#This Row],[Předpoklad]]-TabulkaVýdaje[[#This Row],[Skutečnost]]","v":{"v":-40,"d":"-40.00 Kč"}}]
[null,"Půjčky","Kreditní karta",{"v":64,"d":"64.00 Kč"},{"v":3,"d":"3.00 Kč"},{"$f":"TabulkaVýdaje[[#This Row],[Předpoklad]]-TabulkaVýdaje[[#This Row],[Skutečnost]]","v":{"v":61,"d":"61.00 Kč"}}]
[null,"Půjčky","Kreditní karta",{"v":34,"d":"34.00 Kč"},{"v":35,"d":"35.00 Kč"},{"$f":"TabulkaVýdaje[[#This Row],[Předpoklad]]-TabulkaVýdaje[[#This Row],[Skutečnost]]","v":{"v":-1,"d":"-1.00 Kč"}}]
[null,"Půjčky","Jiné",{"v":38,"d":"38.00 Kč"},{"v":52,"d":"52.00 Kč"},{"$f":"TabulkaVýdaje[[#This Row],[Předpoklad]]-TabulkaVýdaje[[#This Row],[Skutečnost]]","v":{"v":-14,"d":"-14.00 Kč"}}]
[null,"Daně","Daně z příjmů",{"v":84,"d":"84.00 Kč"},{"v":36,"d":"36.00 Kč"},{"$f":"TabulkaVýdaje[[#This Row],[Předpoklad]]-TabulkaVýdaje[[#This Row],[Skutečnost]]","v":{"v":48,"d":"48.00 Kč"}}]
[null,"Daně","Daně z nemovitostí",{"v":2,"d":"2.00 Kč"},{"v":83,"d":"83.00 Kč"},{"$f":"TabulkaVýdaje[[#This Row],[Předpoklad]]-TabulkaVýdaje[[#This Row],[Skutečnost]]","v":{"v":-81,"d":"-81.00 Kč"}}]
[null,"Daně","Silniční daň",{"v":40,"d":"40.00 Kč"},{"v":20,"d":"20.00 Kč"},{"$f":"TabulkaVýdaje[[#This Row],[Předpoklad]]-TabulkaVýdaje[[#This Row],[Skutečnost]]","v":{"v":20,"d":"20.00 Kč"}}]
[null,"Daně","Jiné",{"v":35,"d":"35.00 Kč"},{"v":72,"d":"72.00 Kč"},{"$f":"TabulkaVýdaje[[#This Row],[Předpoklad]]-TabulkaVýdaje[[#This Row],[Skutečnost]]","v":{"v":-37,"d":"-37.00 Kč"}}]
[null,"Úspory nebo investice","Penzijní pojištění",{"v":34,"d":"34.00 Kč"},{"v":20,"d":"20.00 Kč"},{"$f":"TabulkaVýdaje[[#This Row],[Předpoklad]]-TabulkaVýdaje[[#This Row],[Skutečnost]]","v":{"v":14,"d":"14.00 Kč"}}]
[null,"Úspory nebo investice","Investiční účet",{"v":68,"d":"68.00 Kč"},{"v":98,"d":"98.00 Kč"},{"$f":"TabulkaVýdaje[[#This Row],[Předpoklad]]-TabulkaVýdaje[[#This Row],[Skutečnost]]","v":{"v":-30,"d":"-30.00 Kč"}}]
[null,"Úspory nebo investice","Vysoká škola",{"v":89,"d":"89.00 Kč"},{"v":68,"d":"68.00 Kč"},{"$f":"TabulkaVýdaje[[#This Row],[Předpoklad]]-TabulkaVýdaje[[#This Row],[Skutečnost]]","v":{"v":21,"d":"21.00 Kč"}}]
[null,"Úspory nebo investice","Jiné",{"v":82,"d":"82.00 Kč"},{"v":26,"d":"26.00 Kč"},{"$f":"TabulkaVýdaje[[#This Row],[Předpoklad]]-TabulkaVýdaje[[#This Row],[Skutečnost]]","v":{"v":56,"d":"56.00 Kč"}}]
[null,"Dary a příspěvky","Charita 1",{"v":41,"d":"41.00 Kč"},{"v":85,"d":"85.00 Kč"},{"$f":"TabulkaVýdaje[[#This Row],[Předpoklad]]-TabulkaVýdaje[[#This Row],[Skutečnost]]","v":{"v":-44,"d":"-44.00 Kč"}}]
[null,"Dary a příspěvky","Charita 2",{"v":0,"d":"0.00 Kč"},{"v":69,"d":"69.00 Kč"},{"$f":"TabulkaVýdaje[[#This Row],[Předpoklad]]-TabulkaVýdaje[[#This Row],[Skutečnost]]","v":{"v":-69,"d":"-69.00 Kč"}}]
[null,"Dary a příspěvky","Charita 3",{"v":2,"d":"2.00 Kč"},{"v":57,"d":"57.00 Kč"},{"$f":"TabulkaVýdaje[[#This Row],[Předpoklad]]-TabulkaVýdaje[[#This Row],[Skutečnost]]","v":{"v":-55,"d":"-55.00 Kč"}}]
[null,"Právní","Advokát",{"v":7,"d":"7.00 Kč"},{"v":98,"d":"98.00 Kč"},{"$f":"TabulkaVýdaje[[#This Row],[Předpoklad]]-TabulkaVýdaje[[#This Row],[Skutečnost]]","v":{"v":-91,"d":"-91.00 Kč"}}]
[null,"Právní","Výživné",{"v":39,"d":"39.00 Kč"},{"v":85,"d":"85.00 Kč"},{"$f":"TabulkaVýdaje[[#This Row],[Předpoklad]]-TabulkaVýdaje[[#This Row],[Skutečnost]]","v":{"v":-46,"d":"-46.00 Kč"}}]
[null,"Právní","Platby za držbu nebo odhadce",{"v":78,"d":"78.00 Kč"},{"v":84,"d":"84.00 Kč"},{"$f":"TabulkaVýdaje[[#This Row],[Předpoklad]]-TabulkaVýdaje[[#This Row],[Skutečnost]]","v":{"v":-6,"d":"-6.00 Kč"}}]
[null,"Právní","Jiné",{"v":93,"d":"93.00 Kč"},{"v":71,"d":"71.00 Kč"},{"$f":"TabulkaVýdaje[[#This Row],[Předpoklad]]-TabulkaVýdaje[[#This Row],[Skutečnost]]","v":{"v":22,"d":"22.00 Kč"}}]
[null,"Celkem",{"$nulls":3},{"$f":"SUBTOTAL(109,TabulkaVýdaje[Rozdíl])","v":{"v":-117,"d":"-117.00 Kč"}}]